bitfinex-derivatives/quotes_SOLF0:USTF0_20220104
["timestamp","ask_amount","ask_price","bid_price","bid_amount"]
[1641261522165,53.4527,167.86,167.75,55.434]
[1641261522364,27.66479,167.84,167.75,58.434]
[1641261522564,27.66479,167.84,167.77,3.0]
[1641261522964,53.4527,167.86,167.77,3.0]
[1641261523165,3.0,167.84,167.75,55.434]
[1641261523364,56.4527,167.86,167.75,55.434]
[1641261523565,53.4527,167.86,167.75,55.434]
[1641261523764,56.4527,167.86,167.75,55.434]
[1641261524365,27.66479,167.84,167.75,55.434]
[1641261526967,53.4527,167.86,167.75,55.434]
[1641261527167,53.4527,167.86,167.75,60.826]
[1641261528272,53.4527,167.86,167.77,27.66479]
[1641261529369,9.71048763,167.85,167.77,27.66479]
[1641261530671,4.20750008,167.8,167.77,27.66479]
[1641261536977,4.20750008,167.79,167.77,27.66479]
[1641261537679,4.20750008,167.8,167.77,27.66479]
[1641261538678,4.20750008,167.82,167.78,19.74161185]
[1641261538878,4.20750008,167.82,167.78,25.77661185]
[1641261540178,4.20750008,167.82,167.78,19.74161185]
[1641261540980,4.20750008,167.81,167.77,12.62246042]
[1641261541680,10.33150008,167.81,167.77,12.62246042]
[1641261542280,4.20750008,167.8,167.76,19.74161185]
[1641261543381,10.38150008,167.8,167.76,19.74161185]
[1641261543782,10.38150008,167.8,167.76,12.62246042]
[1641261543983,6.174,167.8,167.75,12.62246042]
[1641261544182,3.0,167.79,167.75,12.62246042]
[1641261544583,3.0,167.78,167.75,12.62246042]
[1641261545085,4.20750008,167.77,167.75,12.62246042]
[1641261545285,4.20750008,167.77,167.73,1.61498796]
[1641261546385,4.20750008,167.76,167.73,4.20233722]
[1641261547486,2.58732662,167.78,167.75,4.20233722]
[1641261549889,15.20978704,167.78,167.75,4.20233722]
[1641261550488,15.20978704,167.78,167.74,4.20233722]
[1641261551588,2.58732662,167.78,167.75,4.20233722]
[1641261552188,15.20978704,167.78,167.75,4.20233722]
[1641261553293,2.58732662,167.78,167.76,4.20233722]
[1641261553991,2.58732662,167.78,167.75,4.20233722]
[1641261557394,15.20978704,167.78,167.74,4.20233722]
[1641261557696,3.0,167.77,167.74,4.20233722]
[1641261557996,3.0,167.77,167.75,4.20233722]
[1641261558496,2.58732662,167.76,167.75,4.20233722]
[1641261559196,2.58732662,167.76,167.74,4.20233722]
[1641261561000,15.20978704,167.76,167.72,4.20233722]
[1641261561205,9.71776221,167.78,167.75,3.0]
[1641261561402,33.36798548,167.8,167.76,3.0]
[1641261561599,50.12861475,167.85,167.78,3.0]
[1641261562001,33.66770477,167.85,167.79,3.0]
[1641261562199,33.66770477,167.85,167.8,3.0]
[1641261562402,33.66770477,167.85,167.79,7.254]
[1641261562601,33.66770477,167.85,167.84,27.66479]
[1641261562901,50.12861475,167.9,167.84,27.66479]
[1641261562902,50.12861475,167.9,167.84,31.85579]
[1641261563102,56.5372,167.91,167.84,31.85579]
[1641261563504,59.5372,167.91,167.84,4.191]
[1641261563706,3.0,167.91,167.77,11.57581384]
[1641261564006,6.599,167.91,167.86,4.20699709]
[1641261564407,9.599,167.91,167.86,4.20699709]
[1641261564606,27.66479,167.89,167.86,4.20699709]
[1641261564805,27.66479,167.89,167.85,4.20699709]
[1641261566206,27.66479,167.89,167.84,4.20699709]
[1641261566606,12.50741939,167.93,167.84,4.20699709]
[1641261566806,15.50741939,167.93,167.84,4.20699709]
[1641261567509,3.0,167.91,167.84,4.20699709]
[1641261567707,3.0,167.89,167.84,4.20699709]
[1641261568007,3.0,167.9,167.84,4.20699709]
[1641261568207,5.747,167.91,167.84,4.20699709]
[1641261568408,5.747,167.91,167.85,4.20699709]
[1641261568608,33.41179,167.91,167.85,4.20699709]
[1641261569209,5.9562809,167.88,167.85,9.709e-05]
[1641261569810,8.9562809,167.88,167.85,9.709e-05]
[1641261570011,8.9562809,167.88,167.76,55.6905]
[1641261571015,27.66479,167.83,167.76,55.6905]
[1641261574420,5.9562809,167.88,167.76,55.6905]
[1641261575019,27.66479,167.87,167.76,55.6905]
[1641261575221,27.66479,167.87,167.77,3.0]
[1641261576320,27.66479,167.87,167.76,55.6905]
[1641261577022,27.66479,167.87,167.78,27.66479]
[1641261579329,27.66479,167.87,167.78,30.66479]
[1641261579629,62.3904,167.9,167.78,27.66479]
[1641261580329,62.3904,167.9,167.78,30.66479]
[1641261580630,62.3904,167.9,167.79,3.0]
[1641261580828,62.3904,167.9,167.78,30.66479]
[1641261581031,62.3904,167.9,167.78,27.66479]
[1641261581630,62.3904,167.9,167.79,8.41595028]
[1641261582230,62.3904,167.9,167.79,11.41595028]
[1641261583135,62.3904,167.9,167.79,8.41595028]
[1641261584234,3.0,167.88,167.79,8.41595028]
[1641261584436,8.108,167.88,167.79,8.41595028]
[1641261584635,5.108,167.88,167.79,8.41595028]
[1641261585033,27.66479,167.86,167.79,8.41595028]
[1641261588638,27.66479,167.86,167.77,8.41595028]
[1641261591042,32.35279,167.86,167.77,8.41595028]
[1641261591344,32.35279,167.86,167.78,3.0]
[1641261591544,32.35279,167.86,167.81,12.62262765]
[1641261592352,32.35279,167.86,167.79,12.62262765]
[1641261593143,27.66479,167.82,167.79,12.62262765]
[1641261593345,36.99779,167.82,167.78,12.62433055]
[1641261593544,3.0,167.8,167.77,8.083e-05]
[1641261594245,3.0,167.81,167.77,8.083e-05]
[1641261594444,33.99779,167.82,167.75,33.65672123]
[1641261594645,33.99779,167.82,167.72,62.1452]
[1641261594646,3.0,167.8,167.72,62.1452]
[1641261595246,27.66479,167.76,167.72,62.1452]
[1641261595446,27.66479,167.76,167.68,29.17672123]
[1641261595647,27.66479,167.76,167.68,32.17672123]
[1641261595846,27.66479,167.76,167.68,29.17672123]
[1641261597149,27.66479,167.76,167.68,41.11353758]
[1641261598250,27.66479,167.76,167.68,11.93681635]
[1641261599452,27.66479,167.76,167.68,14.93681635]
[1641261599853,27.66479,167.76,167.68,3.0]
[1641261600554,27.66479,167.76,167.67,89.50479]
[1641261601055,27.66479,167.76,167.68,3.0]
[1641261601256,27.66479,167.76,167.68,4.65]
[1641261601455,27.66479,167.76,167.69,3.0]
[1641261601655,59.6972,167.79,167.7,3.0]
[1641261602057,59.6972,167.79,167.7,4.76084426]
[1641261602556,59.6972,167.79,167.71,1.76084426]
[1641261602758,2.44792582,167.78,167.71,1.76084426]
[1641261603257,2.44792582,167.78,167.71,29.42563426]
[1641261604058,63.4234,167.85,167.71,29.42563426]
[1641261604258,63.4234,167.85,167.72,57.90894426]
[1641261604458,3.0,167.84,167.72,63.43794426]
[1641261604859,2.44737413,167.83,167.73,1.76084426]
[1641261605558,27.66479,167.81,167.73,1.76084426]
[1641261607160,2.44737413,167.8,167.73,1.76084426]
[1641261607959,2.44737413,167.8,167.74,3.0]
[1641261608159,60.4234,167.85,167.73,1.76084426]
[1641261608359,60.4234,167.85,167.75,3.0]
[1641261608858,60.4234,167.85,167.77,3.0]
[1641261609060,60.4234,167.85,167.77,8.173]
[1641261609458,60.4234,167.85,167.8,27.66479]
[1641261609662,27.66479,167.88,167.8,27.66479]
[1641261610459,27.66479,167.88,167.78,60.4332]
[1641261611263,27.66479,167.88,167.78,63.4332]
[1641261611460,27.66479,167.88,167.81,27.66479]
[1641261612560,27.66479,167.88,167.82,3.0]
[1641261612760,50.12861475,167.93,167.83,5.95114113]
[1641261612961,50.12861475,167.93,167.87,3.0]
[1641261613160,50.12861475,167.93,167.87,6.086]
[1641261613361,50.12861475,167.93,167.9,27.66479]
[1641261613561,50.12861475,167.93,167.88,27.66479]
[1641261614364,8.95519437,167.96,167.88,27.66479]
[1641261615266,8.95519437,167.96,167.86,59.1333]
[1641261615465,27.66479,167.93,167.86,59.1333]
[1641261616866,8.95519437,167.92,167.86,59.1333]
[1641261617468,27.66479,167.93,167.86,59.1333]
[1641261618970,27.66479,167.93,167.86,65.3443]
[1641261621974,33.64388633,167.96,167.86,65.3443]
[1641261622176,33.64388633,167.97,167.87,3.0]
[1641261622979,33.64388633,167.97,167.88,3.0]
[1641261623378,42.54143439,167.97,167.88,3.0]
[1641261623880,42.54143439,167.97,167.88,30.66479]
[1641261624080,12.61634486,167.95,167.88,30.66479]
[1641261624982,12.61634486,167.95,167.89,3.0]
[1641261625182,12.61634486,167.95,167.9,3.0]
[1641261625382,12.61634486,167.95,167.9,7.812]
[1641261625783,12.61634486,167.95,167.91,27.66479]
[1641261626083,12.61634486,167.95,167.9,7.812]
[1641261626285,12.61634486,167.96,167.9,4.812]
[1641261627786,12.61634486,167.96,167.92,27.66479]
[1641261628285,12.61634486,167.97,167.92,27.66479]
[1641261628685,12.61634486,167.97,167.92,30.66479]
[1641261628885,12.61634486,167.97,167.92,27.66479]
[1641261629086,12.61634486,167.98,167.92,27.66479]
[1641261629286,12.61634486,167.98,167.92,30.66479]
[1641261629588,8.89754806,168.0,167.92,30.66479]
[1641261629789,4.20466141,167.94,167.92,30.66479]
[1641261629987,8.89754806,168.0,167.93,3.0]
[1641261630188,8.89754806,168.0,167.97,3.0]
[1641261630387,8.89754806,168.0,167.97,5.587]
[1641261630588,46.2554629,168.02,167.97,5.587]
[1641261630789,12.61157657,168.02,167.97,5.587]
[1641261630989,12.61157657,168.02,167.97,8.587]
[1641261631388,12.61157657,168.02,167.97,5.587]
[1641261631889,12.61157657,168.02,167.99,27.66479]
[1641261632288,42.53288799,168.06,167.99,27.66479]
[1641261632792,12.61069682,168.02,167.99,27.66479]
[1641261633389,42.53288799,168.06,167.99,27.66479]
[1641261634089,42.53288799,168.06,168.01,3.0]
[1641261634292,42.53288799,168.06,168.02,3.0]
[1641261634490,33.64388633,168.06,168.03,3.0]
[1641261634693,12.61084825,168.07,168.03,3.0]
[1641261634894,12.61084825,168.07,168.05,3.0]
[1641261635093,12.61084825,168.07,168.05,9.731]
[1641261635292,12.61084825,168.07,168.05,6.731]
[1641261635994,64.0568,168.14,168.06,27.66479]
[1641261636398,12.61084825,168.15,168.06,30.66479]
[1641261636695,1.38933675,168.15,168.08,3.0]
[1641261636894,1.38933675,168.15,168.09,3.0]
[1641261637195,59.495,168.18,168.09,8.956]
[1641261637400,59.495,168.18,168.13,12.60463177]
[1641261637594,12.60463177,168.21,168.13,18.21263177]
[1641261637992,3.36117731,168.17,168.13,18.21263177]
[1641261638394,3.36117731,168.19,168.13,18.21263177]
[1641261638796,3.36117731,168.19,168.13,5.608]
[1641261638994,6.36117731,168.19,168.12,33.64388633]
[1641261639495,11.03217731,168.19,168.12,33.64388633]
[1641261639896,3.36117731,168.18,168.12,33.64388633]
[1641261640096,27.66479,168.16,168.12,33.64388633]
[1641261640695,24.30419305,168.16,168.12,33.64388633]
[1641261641100,24.30419305,168.16,168.1,33.64388633]
[1641261641800,27.30419305,168.16,168.1,33.64388633]
[1641261642001,24.30419305,168.16,168.1,33.64388633]
[1641261642203,24.30419305,168.16,168.11,0.67225029]
[1641261642601,24.30419305,168.16,168.1,0.67225029]
[1641261642803,24.30419305,168.16,168.11,33.64388633]
[1641261643505,3.36122178,168.15,168.12,0.67225029]
[1641261643704,6.36122178,168.15,168.12,0.67225029]
[1641261643905,3.36122178,168.15,168.12,0.67225029]
[1641261644304,24.30419305,168.16,168.09,0.67225029]
[1641261644504,24.30419305,168.16,168.09,39.52313662]
[1641261644905,3.36104183,168.15,168.09,39.52313662]
[1641261645305,3.36104183,168.15,168.1,0.67225029]
[1641261648407,3.36104183,168.15,168.11,3.0]
[1641261648606,3.36104183,168.15,168.11,6.82782505]
[1641261648806,3.36104183,168.18,168.13,3.0]
[1641261649108,3.36104183,168.18,168.12,0.67225029]
[1641261649307,3.36104183,168.19,168.14,2.67207534]
[1641261649706,3.36104183,168.19,168.15,0.67225029]
[1641261649910,3.36104183,168.19,168.15,2.67207534]
[1641261650510,27.66479,168.2,168.16,0.67225029]
[1641261650708,89.35569,168.24,168.16,2.67207534]
[1641261651509,3.35966423,168.23,168.17,0.67225029]
[1641261651709,3.35966423,168.23,168.17,36.31596167]
[1641261652210,3.35966423,168.23,168.18,0.67225029]
[1641261652611,3.35966423,168.23,168.18,2.67207534]
[1641261653211,3.35966423,168.23,168.19,2.67207534]
[1641261653612,3.35966423,168.23,168.2,0.67225029]
[1641261653811,6.35966423,168.23,168.2,5.029e-05]
[1641261654012,6.35966423,168.23,168.2,1.99982505]
[1641261654212,6.35966423,168.23,168.2,2.505e-05]
[1641261654414,27.66479,168.21,168.2,2.505e-05]
[1641261654614,32.41279,168.21,168.12,53.85130135]
[1641261655212,32.41279,168.21,168.13,33.64388633]
[1641261655414,3.36033305,168.2,168.13,34.31595294]
[1641261655813,3.36033305,168.2,168.14,0.67206661]
[1641261656414,3.36033305,168.2,168.14,61.98074294]
[1641261657415,3.36033305,168.23,168.15,0.67206661]
[1641261657915,3.36033305,168.23,168.15,42.34197212]
[1641261658314,3.36033305,168.23,168.16,0.67206661]
[1641261658515,27.66479,168.21,168.16,0.67206661]
[1641261659116,3.36033305,168.2,168.16,0.67206661]
[1641261661818,3.36033305,168.2,168.15,0.67206661]
[1641261662217,3.0,168.18,168.15,0.67206661]
[1641261662416,3.36033305,168.2,168.15,0.67206661]
[1641261662417,27.66479,168.16,168.15,0.67206661]
[1641261662821,27.66479,168.16,168.09,0.67206661]
[1641261663824,61.895,168.2,168.09,0.67206661]
[1641261664026,61.895,168.2,168.1,5.94177065]
[1641261664428,61.895,168.2,168.11,0.67206661]
[1641261665028,3.36012433,168.19,168.11,0.67206661]
[1641261665430,3.36012433,168.19,168.1,0.67206661]
[1641261666029,12.07651895,168.19,168.1,0.67206661]
[1641261666429,12.07651895,168.19,168.1,28.33685661]
[1641261666830,8.71639462,168.19,168.1,28.33685661]
[1641261667130,12.60010339,168.19,168.11,13.27217]
[1641261667529,15.60010339,168.19,168.12,0.67206661]
[1641261667731,3.0,168.18,168.12,0.67206661]
[1641261668029,3.36039864,168.18,168.12,0.67206661]
[1641261668432,3.0,168.14,168.12,0.67206661]
[1641261668630,18.96050203,168.18,168.1,12.60010339]
[1641261668830,15.96050203,168.18,168.1,12.60010339]
[1641261669130,15.60010339,168.18,168.1,12.60010339]
[1641261669631,12.60010339,168.16,168.08,12.60010339]
[1641261669833,12.60010339,168.16,168.11,0.67211125]
[1641261670033,18.40810339,168.16,168.11,0.67211125]
[1641261670235,18.40810339,168.16,168.09,0.67211125]
[1641261670236,15.9610993,168.15,168.09,0.67211125]
[1641261670433,43.6258893,168.15,168.09,0.67211125]
[1641261670734,40.26489339,168.15,168.08,0.67211125]
[1641261670934,12.60010339,168.15,168.1,0.67211125]
[1641261671134,12.60010339,168.14,168.1,0.67211125]
[1641261671434,12.60010339,168.14,168.08,0.67211125]
[1641261672435,40.26489339,168.17,168.09,12.60010339]
[1641261673134,40.26489339,168.17,168.1,0.67211125]
[1641261673733,12.60010339,168.16,168.1,0.67211125]
[1641261673937,3.0,168.14,168.1,0.67211125]
[1641261674237,9.737,168.14,168.1,0.67211125]
[1641261674437,27.66479,168.12,168.08,0.67211125]
[1641261675838,27.66479,168.12,168.07,0.67211125]
[1641261676239,12.60010339,168.13,168.09,0.67211125]
[1641261676841,12.60010339,168.13,168.08,0.67211125]
[1641261677342,12.60010339,168.16,168.07,21.34674454]
[1641261677539,15.60010339,168.16,168.07,21.34674454]
[1641261677741,15.60010339,168.16,168.09,0.67211125]
[1641261678143,15.60010339,168.16,168.08,0.67211125]
[1641261678642,3.0,168.13,168.08,0.67211125]
[1641261678845,3.0,168.12,168.07,0.67211125]
[1641261679047,8.735,168.13,168.07,0.67211125]
[1641261679444,12.60010339,168.12,168.07,0.67211125]
[1641261680445,12.60010339,168.12,168.05,28.33690125]
[1641261680846,12.60010339,168.13,168.06,0.67211125]
[1641261681045,12.60010339,168.13,168.06,5.01911125]
[1641261681948,78.42280339,168.15,168.07,0.67211125]
[1641261682149,12.60010339,168.15,168.07,0.67211125]
[1641261682549,27.66479,168.12,168.07,0.67211125]
[1641261684351,27.66479,168.12,168.05,0.67211125]
[1641261687356,12.60010339,168.13,168.05,0.67211125]
[1641261687555,12.60010339,168.13,168.05,5.62411125]
[1641261688262,12.60010339,168.14,168.06,0.67211125]
[1641261688457,12.60010339,168.14,168.06,28.33690125]
[1641261689058,12.60010339,168.14,168.07,0.67211125]
[1641261689559,12.60010339,168.13,168.07,0.67211125]
[1641261690259,4.19516945,168.09,168.08,4.19516945]
[1641261690963,4.19516945,168.09,168.08,4.8672807]
[1641261691265,12.60010339,168.13,168.08,4.8672807]
[1641261691461,11.70666242,168.14,168.08,4.8672807]
[1641261691462,12.60010339,168.12,168.08,4.8672807]
[1641261691865,12.60010339,168.12,168.09,0.67211125]
[1641261692065,12.60010339,168.13,168.09,4.8672807]
[1641261692765,12.60010339,168.13,168.1,0.67211125]
[1641261693267,12.60010339,168.13,168.1,7.09711125]
[1641261693665,12.60010339,168.13,168.11,0.67211125]
[1641261694467,12.60010339,168.12,168.1,0.67211125]
[1641261694867,19.27810339,168.12,168.09,0.67211125]
[1641261695068,22.27810339,168.12,168.09,0.67211125]
[1641261695266,3.0,168.11,168.09,0.67211125]
[1641261695467,3.0,168.11,168.08,4.19516945]
[1641261695766,3.0,168.09,168.08,4.19516945]
[1641261695967,3.0,168.09,168.07,4.19516945]
[1641261696169,3.0,168.1,168.07,4.19516945]
[1641261696569,27.66479,168.08,168.07,4.19516945]
[1641261696770,27.66479,168.08,168.05,6.17165082]
[1641261697568,27.66479,168.08,168.04,4.19516945]
[1641261699475,3.0,168.05,168.04,4.19516945]
[1641261699873,3.0,168.05,168.04,6.945e-05]
[1641261700277,5.21504943,168.05,167.98,62.8989]
[1641261700479,5.21504943,168.05,167.97,5.9463638]
[1641261700777,3.0,168.04,167.97,5.9463638]
[1641261701381,5.21504943,168.04,167.98,1.93858322]
[1641261701980,3.0,168.03,167.98,1.93858322]
[1641261702180,3.0,168.01,167.98,1.93858322]
[1641261702379,3.0,167.99,167.98,1.93858322]
[1641261702979,9.498,167.99,167.98,1.93858322]
[1641261703179,9.498,167.99,167.94,12.60010339]
[1641261703379,3.0,167.98,167.94,12.60010339]
[1641261703581,3.0,167.97,167.94,12.60010339]
[1641261703781,3.0,167.98,167.93,12.60010339]
[1641261703979,3.0,167.99,167.93,12.60010339]
[1641261704481,3.0,167.98,167.93,12.60010339]
[1641261704780,3.0,167.98,167.92,12.60010339]
[1641261706181,23.93825182,167.99,167.92,12.60010339]
[1641261706881,3.0,167.98,167.92,12.60010339]
[1641261707482,3.0,167.97,167.92,12.60010339]
[1641261707683,8.617,167.97,167.92,12.60010339]
[1641261707885,3.0,167.96,167.92,12.60010339]
[1641261708285,3.0,167.96,167.89,12.60010339]
[1641261708485,15.61225909,167.97,167.89,12.60010339]
[1641261708685,12.61225909,167.97,167.89,40.26489339]
[1641261709685,15.61225909,167.97,167.89,40.26489339]
[1641261709887,15.61225909,167.97,167.9,20.58567541]
[1641261711188,3.0,167.97,167.91,12.60010339]
[1641261711789,3.0,167.97,167.92,0.67273996]
[1641261712490,60.0266,167.98,167.92,0.67273996]
[1641261712991,63.0266,167.98,167.92,0.67273996]
[1641261714493,63.0266,167.98,167.92,13.27284335]
[1641261715095,3.0,167.98,167.92,13.27284335]
[1641261715295,3.0,167.98,167.93,0.67273996]
[1641261715695,3.0,167.98,167.92,0.67273996]
[1641261716095,43.27704909,167.99,167.92,0.67273996]
[1641261716295,40.27704909,167.99,167.92,0.67273996]
[1641261716495,12.61225909,167.98,167.92,0.67273996]
[1641261717095,27.66479,167.99,167.93,12.60010339]
[1641261717695,27.66479,167.99,167.94,0.67273996]
[1641261718498,27.66479,167.99,167.91,0.67273996]
[1641261720301,30.66479,167.99,167.91,0.67273996]
[1641261720501,3.0,167.98,167.91,0.67273996]
[1641261721002,3.0,167.97,167.91,0.67273996]
[1641261721201,3.0,167.96,167.91,0.67273996]
[1641261721402,3.0,167.95,167.91,0.67273996]
[1641261721604,3.0,167.94,167.91,0.67273996]
[1641261722006,3.0,167.94,167.87,0.67273996]
[1641261722901,3.0,167.94,167.85,0.67273996]
[1641261724509,65.4511,167.95,167.85,0.67273996]
[1641261724709,3.0,167.91,167.85,0.67273996]
[1641261725411,3.0,167.91,167.86,12.60010339]
[1641261725608,3.0,167.9,167.86,12.60010339]
[1641261726008,3.0,167.9,167.87,0.67273996]
[1641261726409,3.0,167.91,167.87,0.67273996]
[1641261726610,30.66479,167.92,167.87,0.67273996]
[1641261727310,30.66479,167.92,167.87,13.27284335]
[1641261727509,3.0,167.91,167.87,13.27284335]
[1641261727909,3.0,167.89,167.88,0.67273996]
[1641261728109,3.0,167.9,167.88,0.67273996]
[1641261728916,3.0,167.91,167.88,0.67273996]
[1641261729114,3.0,167.91,167.87,0.67273996]
[1641261730415,3.0,167.91,167.86,0.67273996]
[1641261731819,30.66479,167.92,167.85,0.67273996]
[1641261732018,30.66479,167.92,167.85,7.45173996]
[1641261732220,3.0,167.88,167.85,7.45173996]
[1641261732418,64.9495,167.91,167.85,7.45173996]
[1641261732618,61.9495,167.91,167.86,0.67273996]
[1641261733119,64.9495,167.91,167.86,0.67273996]
[1641261733319,3.0,167.91,167.86,0.67273996]
[1641261733920,27.66479,167.92,167.85,0.67273996]
[1641261734119,3.0,167.87,167.85,0.67273996]
[1641261734323,4.395,167.87,167.8,12.60010339]
[1641261734619,3.0,167.84,167.8,12.60010339]
[1641261734822,3.0,167.83,167.78,18.55319304]
[1641261735020,5.827,167.83,167.78,12.60010339]
[1641261735220,3.0,167.81,167.74,33.64388633]
[1641261735420,3.0,167.8,167.74,33.64388633]
[1641261735621,3.0,167.78,167.74,33.64388633]
[1641261735821,5.216,167.78,167.74,33.64388633]
[1641261736022,5.216,167.78,167.71,63.6472]
[1641261736023,5.216,167.78,167.71,71.35559584]
[1641261737021,3.0,167.79,167.71,63.6472]
[1641261737221,66.3203,167.8,167.71,63.6472]
[1641261737925,3.0,167.79,167.71,63.6472]
[1641261738124,66.3203,167.8,167.71,63.6472]
[1641261738323,3.0,167.79,167.71,63.6472]
[1641261738724,66.3203,167.8,167.71,63.6472]
[1641261738926,3.0,167.79,167.7,5.651]
[1641261739126,63.3203,167.8,167.7,5.651]
[1641261739926,63.3203,167.8,167.7,69.0884]
[1641261740928,63.3203,167.8,167.71,7.40910686]
[1641261741126,3.0,167.78,167.71,7.40910686]
[1641261741327,5.343,167.78,167.71,7.40910686]
[1641261741527,3.0,167.72,167.69,33.64388633]
[1641261741728,3.0,167.7,167.69,33.64388633]
[1641261741928,35.48079,167.72,167.69,33.64388633]
[1641261742128,32.48079,167.72,167.69,33.64388633]
[1641261742328,3.0,167.7,167.64,77.79553964]
[1641261742532,3.0,167.71,167.64,34.13074964]
[1641261742730,3.0,167.71,167.62,33.37358438]
[1641261742930,3.0,167.65,167.62,33.37358438]
[1641261743130,6.249,167.65,167.62,33.37358438]
[1641261743333,6.249,167.65,167.61,27.66479]
[1641261744134,6.249,167.65,167.6,5.95947557]
[1641261744735,9.249,167.65,167.6,5.95947557]
[1641261745035,3.0,167.63,167.6,5.95947557]
[1641261745833,30.66479,167.63,167.6,5.95947557]
[1641261746234,27.66479,167.63,167.56,27.66479]
[1641261746435,3.0,167.6,167.41,61.8983]
[1641261746636,5.71,167.6,167.46,3.0]
[1641261747036,5.71,167.6,167.47,1.49197633]
[1641261747835,8.96320701,167.67,167.56,27.66479]
[1641261748036,55.32958,167.68,167.56,31.81979]
[1641261748337,2.70742566,167.59,167.56,31.81979]
[1641261749036,3.0,167.66,167.57,1.49197633]
[1641261749236,3.0,167.64,167.57,1.49197633]
[1641261749836,27.66479,167.68,167.57,1.49197633]
[1641261750036,3.0,167.65,167.57,1.49197633]
[1641261750440,3.0,167.61,167.57,1.49197633]
[1641261750639,7.121,167.61,167.57,1.49197633]
[1641261750839,7.121,167.61,167.54,27.66479]
[1641261751239,7.121,167.61,167.52,29.15676633]
[1641261751544,3.0,167.6,167.55,1.49197633]
[1641261751739,27.66479,167.6,167.55,1.49197633]
[1641261751939,3.0,167.64,167.55,1.49197633]
[1641261752140,3.0,167.65,167.53,1.49197633]
[1641261752438,3.0,167.67,167.53,1.49197633]
[1641261752639,2.70712367,167.64,167.53,12.23043221]
[1641261753339,5.70712367,167.67,167.53,1.49197633]
[1641261753539,6.179,167.64,167.53,1.49197633]
[1641261753741,33.84379,167.64,167.56,27.66479]
[1641261754344,33.84379,167.64,167.57,1.49197633]
[1641261754844,2.70644986,167.63,167.57,1.49197633]
[1641261756547,60.9637,167.71,167.56,27.66479]
[1641261756748,3.0,167.69,167.57,69.33648596]
[1641261756948,3.0,167.7,167.57,69.33648596]
[1641261757348,63.9637,167.71,167.57,69.33648596]
[1641261757549,3.0,167.7,167.57,63.3763]
[1641261757749,63.9637,167.71,167.57,63.3763]
[1641261757951,27.66479,167.7,167.61,27.66479]
[1641261761153,27.66479,167.7,167.62,1.50599384]
[1641261761755,27.66479,167.7,167.62,8.32896368]
[1641261763157,27.66479,167.7,167.64,33.6854598]
[1641261764457,27.66479,167.7,167.66,33.6854598]
[1641261765261,30.66479,167.7,167.66,33.6854598]
[1641261765660,27.66479,167.7,167.66,33.6854598]
[1641261765862,27.66479,167.7,167.67,12.63285031]
[1641261766460,20.92700477,167.7,167.67,12.63285031]
[1641261767665,25.13810341,167.7,167.69,4.21109864]
[1641261768265,25.13810341,167.7,167.67,12.63285031]
[1641261768266,20.92700477,167.7,167.67,12.63285031]
[1641261768467,4.21109864,167.71,167.67,12.63285031]
[1641261769066,4.21109864,167.71,167.63,33.6854598]
[1641261769067,4.21109864,167.73,167.7,12.63285031]
[1641261769967,2.76468368,167.73,167.72,4.21047442]
[1641261770770,2.76468368,167.73,167.68,12.63285031]
[1641261770971,43.29764031,167.76,167.69,12.63285031]
[1641261770972,2.76468368,167.75,167.69,12.63285031]
[1641261771374,2.76468368,167.75,167.73,4.21003781]
[1641261773375,2.76468368,167.76,167.74,4.21003781]
[1641261773975,2.76468368,167.76,167.75,4.21003781]
[1641261774177,2.76468368,167.77,167.75,4.21003781]
[1641261775377,12.63285031,167.79,167.75,4.21003781]
[1641261775878,15.63285031,167.79,167.75,4.21003781]
[1641261776278,3.0,167.78,167.75,4.21003781]
[1641261776478,3.0,167.77,167.75,4.21003781]
[1641261776778,3.0,167.77,167.73,4.21003781]
[1641261776779,15.63285031,167.77,167.73,4.21003781]
[1641261777878,3.0,167.77,167.67,63.0753]
[1641261778080,30.66479,167.77,167.67,63.0753]
[1641261778681,27.66479,167.77,167.67,63.0753]
[1641261781380,30.66479,167.77,167.67,63.0753]
[1641261781579,3.0,167.76,167.67,63.0753]
[1641261781979,30.66479,167.77,167.67,63.0753]
[1641261782179,27.66479,167.77,167.67,63.0753]